Cogmind - Beta 15 @@@ ROGUE MODE // 2025.05.19 @ 21:36:05 Player: jumpy Result: Destroyed by Y-45 Defender with Beam Rifle Performance ------------- Evolutions (2) 1000 Regions Visited (3) 600 Robots Destroyed (53) 265 Value Destroyed (1934) 1934 Prototype IDs (1) 20 Alien Tech Used (0) 0 Bonus (93) 93 TOTAL SCORE: 3912 Bonus ------- High Alert Combat Kills 93 Cogmind --------- Core Integrity 0/550 Matter 275/300 Energy 100/100 System Corruption 0% Temperature Cool (9) Movement Treading (232) Ox1 Location -8/Materials Parts ------- > --- POWER (1) -------- (None) > --- PROPULSION (4) --- Light Treads Advanced Treads > --- UTILITY (4) ------ High-capacity Storage Unit Sensor Array Improved Signal Interpreter Makeshift System Shield > --- WEAPON (2) ------- Flak Gun Katana > --- INVENTORY (20) --- Light Nuclear Core Light Nuclear Core Compact Wheel Improved Terrain Scanner Transmission Jammer Hardened Medium Armor Plating System Shield Field Laser Flak Gun Improved Datajack Peak State ------------ > --- POWER ------------ Light Nuclear Core > --- PROPULSION ------- Armored Treads Advanced Treads Advanced Treads Advanced Treads > --- UTILITY ---------- Large Storage Unit Improved Sensor Array Improved Signal Interpreter Makeshift System Shield > --- WEAPON ----------- Minigun Ripper > --- INVENTORY -------- Improved Ion Engine Light Treads Light Treads Light Treads Light Treads Advanced Treads Compact Wheel Improved Terrain Scanner System Shield Beam Rifle Field Laser Pulse Rifle Advanced Beam Rifle Minigun Improved Datajack [Rating: 36] Favorites ----------- Power Light Nuclear Core Engine Improved Ion Engine Power Core Light Nuclear Core Propulsion Advanced Treads Treads Advanced Treads Leg Aluminum Leg Wheel Compact Wheel Utility Makeshift System Shield Device Improved Sensor Array Storage Large Storage Unit Processor Improved Signal Interpreter Hackware Makeshift System Shield Protection Hardened Medium Armor Plating Weapon Ripper Energy Gun Advanced Beam Rifle Ballistic Gun Minigun Slashing Weapon Ripper Build | -11 -10 -10 -8 ------- Run | Yrd Mat Sub Mat Slots Evolved 4 | . . . 4 Power . | . . . . Propulsion 2 | . . . 2 Utility 2 | . . . 2 Weapon . | . . . . Parts Attached 51 | 8 . 5 38 Power 10 | 1 . 1 8 Engine 4 | 1 . 1 2 Core 6 | . . . 6 Reactor . | . . . . Propulsion 18 | 2 . 2 14 Treads 14 | . . 2 12 Leg 2 | 2 . . . Wheel 2 | . . . 2 Hover . | . . . . Flight . | . . . . Utility 12 | 2 . 1 9 Device 6 | 1 . 1 4 Storage 3 | 1 . . 2 Processor 1 | . . . 1 Hackware 1 | . . . 1 Protection 1 | . . . 1 Artifact . | . . . . Weapon 11 | 3 . 1 7 Energy Gun 2 | 1 . . 1 Energy Cannon . | . . . . Ballistic Gun 7 | 2 . . 5 Ballistic Cannon . | . . . . Launcher . | . . . . Special Weapon . | . . . . Impact Weapon . | . . . . Slashing Weapon 2 | . . 1 1 Piercing Weapon . | . . . . Special Melee Weapon . | . . . . Unidentified Prototypes 1 | . . . 1 Parts Lost 21 | . . 5 16 Power 4 | . . 1 3 Propulsion 12 | . . 2 10 Utility 2 | . . . 2 Weapon 3 | . . 2 1 Highest Loss Streak 5 | . . 5 3 To Critical Strikes . | . . . . Average Backups 9 | 3 6 5 11 Power . | . 1 . . Propulsion 3 | 1 2 3 3 Utility 2 | . 2 1 2 Weapon 2 | . 1 1 3 Tool/Special . | . . . . Unused Backups 14 | . . 1 13 Power 1 | . . . 1 Propulsion 1 | . . . 1 Utility 5 | . . 1 4 Weapon 6 | . . . 6 Tool/Special 1 | . . . 1 Average Slot Usage (%) 91 | . 100 75 93 Engine 3 | . 14 8 2 Core 4 | . . . 5 Treads 25 | . . 17 28 Leg 2 | . 28 8 . Wheel 2 | . . . 2 Device 10 | . 14 12 9 Storage 9 | . 14 11 9 Processor 6 | . . . 7 Hackware 7 | . . . 8 Energy Gun 3 | . 14 4 2 Ballistic Gun 5 | . 14 3 5 Slashing Weapon 8 | . . 8 9 Peak Build Rating 36 | 7 7 13 36 Average Rating 24 | 5 7 9 29 On Entrance 6 | . 7 7 13 Naked Turns 11 | . . 11 . Heaviest Build 52 | 14 14 14 52 Greatest Support 86 | 20 20 40 86 Greatest Overweight (x) 3 | . . 1 3 Average Overweight (x) . | . . . . Largest Inventory Capacity 20 | 8 8 8 20 Average Capacity 12 | 7 8 7 13 Most Carried 15 | 6 7 7 15 Average Carried 9 | 3 6 5 11 Final Capacity 20 | 8 8 8 20 Final Carried 10 | 6 7 6 10 Class Distribution -------------------- 82% | Mutant 15% | Scavenger-Mutant Dominant Class ---------------- Mutant | -10/Materials Mutant | -10/Subcaves Mutant | -8/Materials Resources | -11 -10 -10 -8 ----------- Run | Yrd Mat Sub Mat Matter Collected 948 | 322 . 47 579 Remotely . | . . . . Salvage Created 2433 | 171 . 49 2213 Parts 121 | 14 . 1 106 Haulers Intercepted 3 | . . . 3 Recyclers Shooed . | . . . . Parts Field Recycled . | . . . . Retrieved Matter . | . . . . Parts Self-Destructed . | . . . . Prevented . | . . . . Kills | -11 -10 -10 -8 ------- Run | Yrd Mat Sub Mat Combat Hostiles Destroyed 43 | . . 1 42 Melee 36 | . . 1 35 Guns 7 | . . . 7 Classes Destroyed 10 | 2 . 1 7 Worker 1 | . . . 1 Tunneler 4 | 4 . . . Hauler 3 | . . . 3 Recycler 2 | 1 . . 1 Swarmer 4 | . . . 4 Grunt 28 | . . . 28 Duelist 1 | . . . 1 Sentry 8 | . . . 8 Hunter 1 | . . . 1 Subdweller 1 | . . 1 . Best Kill Streak 7 | 3 . 1 7 Combat Bots Only 7 | . . 1 7 Max Kills in Single Turn 1 | 1 . 1 1 Gunslinging . | . . . . Exploded . | . . . . Melee 1 | . . 1 1 Uniques/NPCs Destroyed . | . . . . Combat | -11 -10 -10 -8 -------- Run | Yrd Mat Sub Mat Hostile Shots Fired 371 | . . 49 322 Missed 81 | . . 8 73 Hits 290 | . . 41 249 Melee 6 | . . . 6 Projectile 284 | . . 41 243 Critical Strikes 14 | . . 1 13 Damage Taken 4618 | . . 820 3798 Core 771 | . . 219 552 Absorbed by Shields . | . . . . Regen/Repaired (Parts) 554 | . . . 554 Core Remaining (%) 56 | 100 . 12 . Volleys Fired 87 | 14 1 18 54 Largest 2 | 2 1 2 1 Hottest 61 | 60 20 60 61 Shots Fired 114 | 28 1 31 54 Gun 114 | 28 1 31 54 Cannon . | . . . . Launcher . | . . . . Special . | . . . . Kinetic 71 | 14 1 13 43 Thermal 43 | 14 . 18 11 Explosive . | . . . . Electromagnetic . | . . . . Robot Hit Streak 10 | 4 . 6 10 Robot Miss Streak 3 | 3 1 3 3 Penetration Max . | . . . . Secondary Targets . | . . . . Shots Hit Robots 190 | 15 . 29 146 Core Hits 76 | 6 . 2 68 Critical Kills . | . . . . Critical Parts Destroyed . | . . . . Critical Strikes 15 | . . . 15 Sever 15 | . . . 15 Melee Attacks 158 | . . 5 153 Impact . | . . . . Slashing 158 | . . 5 153 Piercing . | . . . . Sneak Attacks 8 | . . . 8 Combat Hostiles 1 | . . . 1 Follow-up Attacks 1 | . . . 1 Damage Inflicted 4976 | 190 . 416 4370 Guns 1201 | 190 . 274 737 Cannons . | . . . . Explosions . | . . . . Melee 3775 | . . 142 3633 Ramming . | . . . . Kinetic 798 | 103 . 98 597 Thermal 403 | 87 . 176 140 Explosive . | . . . . Electromagnetic . | . . . . Impact . | . . . . Slashing 3775 | . . 142 3633 Piercing . | . . . . Highest Corruption . | . . . . Average Corruption . | . . . . Corruption Purged . | . . . . Corruption Blocked . | . . . . Overload Shots . | . . . . Overflow Damage 83 | . . . 83 Projectiles . | . . . . Explosions . | . . . . Melee 83 | . . . 83 Knockbacks . | . . . . Impact . | . . . . Kinetic . | . . . . Secondary . | . . . . Self-Inflicted Damage . | . . . . Shots . | . . . . Rammed . | . . . . Targets Rammed . | . . . . Kicked . | . . . . Crushed . | . . . . Highest Temperature 102 | . . . 102 Average Temperature 22 | . . . 22 Received Heat Transfer 1992 | . . 156 1836 Siege Activations . | . . . . Martial Activations . | . . . . Shielding Activations . | . . . . Robots Disrupted . | . . . . Combat Hostiles . | . . . . Robots Corrupted . | . . . . Combat Hostiles . | . . . . Parts Fried . | . . . . Impact Corruptions . | . . . . Robots Melted . | . . . . Combat Hostiles . | . . . . Parts Melted 2 | 1 . . 1 Heat Transferred 859 | 200 . 400 259 Parts Sabotaged . | . . . . Parts Stolen . | . . . . Parts Stripped . | . . . . Power Chain Reactions . | . . . . Alert | -11 -10 -10 -8 ------- Run | Yrd Mat Sub Mat Maximum Alert Level 2 | . . . 2 Low Security (%) 75 | 100 100 . 71 Level 1 15 | . . . 17 Level 2 9 | . . . 11 Level 3 . | . . . . Level 4 . | . . . . Level 5 . | . . . . High Security . | . . . . Max Security . | . . . . Peak Influence 534 | 5 . . 534 Initial . | . . . . Average 128 | . . . 147 Influence Increases 1291 | 25 . . 1266 Destroy 0b10 Robot/C 840 | . . . 840 Destroy 0b10 Robot/NC 50 | 25 . . 25 Destroy Leader 176 | . . . 176 Successful Hack 12 | . . . 12 Disable Machine 30 | . . . 30 Destroy Structure 3 | . . . 3 Lose Combat Pursuer 180 | . . . 180 Influence Decreases 769 | 25 . . 744 Time Decay 639 | 25 . . 614 Lost Part 130 | . . . 130 Squads Dispatched 8 | . 1 . 7 Investigation 1 | . . . 1 Extermination . | . . . . Reinforcement 4 | . 1 . 3 Assault 1 | . . . 1 Garrison 2 | . . . 2 Intercept . | . . . . Searches Triggered . | . . . . Construction Impeded . | . . . . Haulers Reinforced . | . . . . Active Scanning Responses . | . . . . Cargo Convoy Interrupts . | . . . . Stealth | -11 -10 -10 -8 --------- Run | Yrd Mat Sub Mat Distress Signals 11 | . . . 11 Communications Jammed . | . . . . Distress Signals . | . . . . Times Spotted 76 | . 2 2 72 Peak Tracking Total 7 | . 1 2 7 Tactical Retreats 11 | . . . 11 Traps | -11 -10 -10 -8 ------- Run | Yrd Mat Sub Mat Traps Triggered . | . . . . Indirectly . | . . . . Trap Hack Attempts . | . . . . Triggered . | . . . . Disarmed . | . . . . Reprogrammed . | . . . . Reused . | . . . . Traps Extracted . | . . . . Installed . | . . . . Triggered . | . . . . Machines | -11 -10 -10 -8 ---------- Run | Yrd Mat Sub Mat Machines Disabled 2 | . . . 2 Max in Single Turn 1 | . . . 1 Machines Repaired . | . . . . Machines Dismantled . | . . . . Machines Sabotaged . | . . . . Overloaded Fab Kills . | . . . . Hacking | -11 -10 -10 -8 --------- Run | Yrd Mat Sub Mat Machines Accessed 2 | . . . 2 Terminals 1 | . . . 1 Fabricators . | . . . . Repair Stations 1 | . . . 1 Recycling Units . | . . . . Scanalyzers . | . . . . Garrison Access . | . . . . Total Hacks 16 | . . . 16 Successful 9 | . . . 9 Failed 7 | . . . 7 Catastrophic 1 | . . . 1 Database Lockouts . | . . . . Manual 7 | . . . 7 Terminals 5 | . . . 5 Fabricators . | . . . . Repair Stations 11 | . . . 11 Recycling Units . | . . . . Scanalyzers . | . . . . Garrison Access . | . . . . Terminal Hacks . | . . . . Fabricator Hacks . | . . . . Repair Station Hacks 7 | . . . 7 Scan Component 4 | . . . 4 Repair 3 | . . . 3 Recycling Unit Hacks . | . . . . Scanalyzer . | . . . . Garrison Access Hacks . | . . . . Unauthorized Hacks 2 | . . . 2 Terminals 1 | . . . 1 Disrupt 1 | . . . 1 Fabricators . | . . . . Repair Stations 1 | . . . 1 Patch 1 | . . . 1 Recycling Units . | . . . . Scanalyzers . | . . . . Garrison Access . | . . . . Data Cores Recovered . | . . . . Used . | . . . . Hacking Detections 1 | . . . 1 Full Trace Events . | . . . . Feedback Events . | . . . . Feedback Blocked . | . . . . Robot Schematics Acquired . | . . . . Robots Built . | . . . . Authchips . | . . . . Time . | . . . . Total Robot Build Rating . | . . . . Part Schematics Acquired . | . . . . Parts Built . | . . . . Authchips . | . . . . Time . | . . . . Total Part Build Rating . | . . . . Parts Repaired 3 | . . . 3 Time 129 | . . . 129 Parts Recycled . | . . . . Recycled Matter . | . . . . Retrieved Matter . | . . . . Retrieved Components . | . . . . Parts Scanalyzed . | . . . . Part Schematics Acquired . | . . . . Parts Damaged . | . . . . Bothacking | -11 -10 -10 -8 ------------ Run | Yrd Mat Sub Mat Used RIF Installer . | . . . . Robots Hacked . | . . . . Non-combat . | . . . . Combat . | . . . . Robot Hacks Applied . | . . . . Relay Couplers Released . | . . . . Fabnet Peak Effective % . | . . . . Robots Rewired . | . . . . Allies Hacked . | . . . . Hacks Repelled . | . . . . Allies | -11 -10 -10 -8 -------- Run | Yrd Mat Sub Mat Total Allies . | . . . . Largest Group . | . . . . Highest-Rated Group . | . . . . Highest-Rated Ally . | . . . . Total Orders . | . . . . Ally Attacks . | . . . . Total Damage . | . . . . Kills . | . . . . Allies Corrupted . | . . . . Allies Melted . | . . . . Intel | -11 -10 -10 -8 ------- Run | Yrd Mat Sub Mat Active Infowar (turns) 2641 | 122 134 273 2112 Optics 287 | . . 172 115 Sensors 1890 | . . . 1890 Terrain 142 | . . . 142 Seismic 357 | 122 134 101 . Robot Analysis Total . | . . . . Derelict Logs Recovered . | . . . . Drone Launches . | . . . . Drone Recoveries . | . . . . Exploration | -11 -10 -10 -8 ------------- Run | Yrd Mat Sub Mat Turns Passed 2890 | 207 134 317 2232 Spaces Moved 1287 | 127 107 171 882 Core 37 | 6 . 29 2 Treads 806 | . . 114 692 Legs 256 | 121 107 28 . Wheels 188 | . . . 188 Hover . | . . . . Flight . | . . . . Fastest Speed 50 | 50 120 50 90 Average Speed 134 | 116 120 136 138 Slowest Speed 240 | 120 120 160 240 Overloaded Moves . | . . . . Propulsion Burnouts . | . . . . Robots Hopped . | . . . . Potential Cave-ins 8 | . . . 8 Cave-ins Triggered . | . . . . Exploration Rate (%) 28 | 5 22 12 76 Regions Visited 3 Branch Regions 1 Pre-discovered Areas . | . . . . Known Exits Taken . | . . . . Unknown Exits Taken 3 | 1 1 1 . Scrap Searched 2 | . . 2 . Spaces Dug 11 | . . . 11 Terrain Destroyed 11 | . . . 11 Melee 11 | . . . 11 Projectile . | . . . . AOE . | . . . . Terrain Rammed . | . . . . Walls Destroyed . | . . . . Machines Disabled . | . . . . Actions | -11 -10 -10 -8 --------- Run | Yrd Mat Sub Mat Total 2084 | 154 111 214 1605 Wait 450 | . 3 12 435 Move 1284 | 126 106 170 882 Hop . | . . . . Pick Up 27 | 6 1 1 19 Fast Attach 25 | 7 . 6 12 Attach 10 | . . . 10 Detach . | . . . . Swap 25 | 1 . . 24 Drop 19 | . . 2 17 Fire 87 | 14 1 18 54 Melee 157 | . . 5 152 Ram . | . . . . Kick . | . . . . Crush . | . . . . Escape Stasis . | . . . . Rewire . | . . . . Trap . | . . . . Miscellaneous . | . . . . Route ------- -11/Scrapyard -10/Materials (discovered 2 exits: [*Min] / [*Sub]) -10/Subcaves -8/Materials (discovered 2 exits: [*Fac x2]) History --------- Turn | Location | Event 3 | -11/Scrapyard | Discovered new exit (range 16) 208 | -11/Scrapyard | Entered Materials 304 | -10/Materials | Build established: Mutant 316 | -10/Materials | Discovered new exit (range 15) 319 | -10/Materials | Discovered new exit (range 7) 342 | -10/Materials | Entered Subcaves 343 | -10/Subcaves | Approached by a straggling Scientist 432 | -10/Subcaves | Core integrity fell below 50% 468 | -10/Subcaves | Lost 5 parts (1p2n2w) 469 | -10/Subcaves | Core integrity fell below 20% 641 | -10/Subcaves | Shifting Twisted Machinery released Mak. System Shield 643 | -10/Subcaves | Discovered new exit (range 6) 659 | -10/Subcaves | Entered Materials 659 | -8/Materials | Evolved 4 slots: Propulsion x2, Utility x2 743 | -8/Materials | Lost 3 parts (1p2n) 1157 | -8/Materials | Discovered new exit (range 16) 1627 | -8/Materials | Discovered new exit (range 9) 1791 | -8/Materials | Core integrity fell below 50% 1961 | -8/Materials | Repaired Broken Arm. Treads 2018 | -8/Materials | Repaired Adv. Treads 2061 | -8/Materials | Repaired Adv. Treads 2286 | -8/Materials | Destroyed 7 combat bots 2477 | -8/Materials | Garrison activated, responded to threat 2659 | -8/Materials | First assault squad dispatched 2711 | -8/Materials | Core integrity fell below 20% 2844 | -8/Materials | Garrison activated, responded to threat 2891 | -8/Materials | Destroyed by Y-45 Defender with Beam Rifle Last Messages --------------- 02813_ S-10 Pest destroyed. 02819_ Acquired 20 matter. 02844_ Sneak attack on A-02 Transporter. 02844_ A-02 Transporter calls for garrison support. 02844_ ALERT: Activating Garrison Access M001. 02858_ A-02 Transporter destroyed. 02860_ K-01 Serf collects debris. 02860_ Lgt. Nuclear Core destroyed. 02864_ K-01 Serf collects debris. 02866_ Lgt. Treads destroyed. 02869_ K-01 Serf collects debris. 02873_ W-25 Informer sends out distress signal. 02874_ G-47 Trooper Aluminum Leg severed. 02874_ Critical hit (Burn: +37). 02877_ K-01 Serf collects debris. 02885_ Critical hit (Burn: +37). 02885_ Lgt. Treads destroyed. 02887_ G-47 Trooper destroyed. 02890_ K-01 Serf collects debris. 02890_ K-01 Serf destroyed. Map ----- +----------------------------------------------------+ | ??????????????????????????????????????????????? | | ??????????????????????????????????????????????? | | ??????????????????????????????????????????????? | | #?????????????????????????????????????????????? | | #?????????????????????????????????????????????? | | #?????????????????????????????????????????????? | | #?????????????????????????????????????????????? | | #????????????#####????????????????????????????? | | #????????????#"""#????????????????????????????? | | #?????########"T"#######??????????????????????? | | #?????#[ #??????????????????????? | | #?????#[[[ #??????????????????????? | | #?????#!! "" #??????????????????????? | | ??????#!! [ G" ##?????????????????????? | | ??????# !!### "" "#?????????????????????? | | ??????#!! ##" T#?????????????????????? | | #?##########" "#?????????????????????? | | ### #" [ ##???????#?????????????? | | ! # """ #T """ #??????? #???#?????????? | | =[#= """ #" """ #??????" #?? #?????????? | | [ # """ #" """ #????? ?? #?????????? | | [ # #" ######Y### #?????????? | | # """ ## ! * #?????????? | | # """ + [g[% #?????????? | | = # """ ######## *=*%*= #?????????? | | !!#! #???#######+##@ ########?????????? | | [%####+#####???# % #= #????????????????? | | +### #?????# """ %# #????????????????? | | %%[ #?????# """ # #????????????????? | | !% #?????# """ # #########????????? | | #?????# # +????????? | | +### #?????# """ # w #????????? | | ?## ##?????# """ # #????????? | | ??# #??????# """ # #????????? | | ??# #??????# # "+ ???? | | ??# #?????????####### "%# # | | ??# #???????????????# % u "#? [[ # | | ??# #?????????????#####/######## #???[ # | | ##??# #?????????????# a *#??# #????####? | | ????? #?????????????# #??# #????????? | | ????? #?????????????# [#??# #????????? | | ????? #?????????????# #??#=#????????? | | ????? +?????????????# """ ///#??#!#????????? | | ?????? ???????????????# """ ///#??#%#?######## | | ??????????????????????# """ *///####=### # | | ??????????????????????# %*% ## ==*[#% # | | ??????????????????????###+##+##### ![!#*% """# | | ??????????????????####### ==##### !%+=* """# | | ??????????? =%! % ==#[= """# | | ??????????????????#######+## ##### =!#! # | +----------------------------------------------------+ Best States ------------- Heat Dissipation 31 Energy Generation 14 Energy Capacity 265 Matter Stores 300 Matter Capacity 300 Sight Range 21 Robot Scan Range 15 Terrain Scan Range 16 Terrain Scan Density 10 Armor Coverage 225 Evasion (%) 55 Recoil Reduction 4 Defensive Hacking 11 Item Schematics ----------------- None Robot Schematics ------------------ None Fabricated ------------ Nothing Repaired ---------- Arm. Treads | 7% | -8/Materials | Broken Adv. Treads | 18% | -8/Materials Adv. Treads | 29% | -8/Materials Alien Tech Used ----------------- None Achievements -------------- None Challenges ------------ None Game ------ Seed ParticleShadingScrap Manual? 0 Play Time 00:21:03 Cumulative 102.7 hours Start 2025.05.19 @ 21:14:27 End 2025.05.19 @ 21:36:05 Sessions 1 Manual Loads 0 Difficulty Rogue Special Mode None Game No. 269 Rogue 269 Adventurer 0 Explorer 0 Win Type - Total 2 Types 2/0/0/0/0/0/0/0/0/0 Lore% 49 Gallery% 49 Achievement% 41 Wizard Run 0 Options --------- Layout 0 ASCII 0 Keyboard 0 Movement Numpad Keybinds 0 Fullscreen 2 Font 18/Terminus Map View 76x50 Zoom Use 0% Tactical HUD 1 Map Filters NONE Filters NONE Steam 1 RUN: 7e3c1a0d-7559-4fd2-a02c-003383002a22